[Event "*** SCC Grand Prix: Titled Tuesday Blitz"]
[Site "Chess.com"]
[Date "2020.10.06"]
[Round "3"]
[White "Revnov"]
[Black "jefferyx"]
[Result "0-1"]
[WhiteElo "2693"]
[BlackElo "2902"]
[TimeControl "180+1"]
[EndTime "10:26:28 PDT"]
[Termination "jefferyx won by resignation"]

1. e4 {[%clk 0:03:00.9]} 1... e6 {[%clk 0:02:52.9]} 2. d4 {[%clk 0:02:57.4]}
2... d5 {[%clk 0:02:53.8]} 3. e5 {[%clk 0:02:57.6]} 3... c5 {[%clk 0:02:53.7]}
4. c3 {[%clk 0:02:58.1]} 4... b6 {[%clk 0:02:54.3]} 5. Nf3 {[%clk 0:02:54.7]}
5... Ne7 {[%clk 0:02:54.7]} 6. Na3 {[%clk 0:02:45.5]} 6... Nec6 {[%clk
0:02:54.2]} 7. Be2 {[%clk 0:02:37.6]} 7... Ba6 {[%clk 0:02:54]} 8. Nb5 {[%clk
0:02:35.7]} 8... Qd7 {[%clk 0:02:49.1]} 9. O-O {[%clk 0:02:34.2]} 9... c4 {[%clk
0:02:37.6]} 10. Nd6+ {[%clk 0:02:03.4]} 10... Bxd6 {[%clk 0:02:37.2]} 11. exd6
{[%clk 0:02:04.3]} 11... Qxd6 {[%clk 0:02:38.1]} 12. Re1 {[%clk 0:01:59.7]}
12... Nd7 {[%clk 0:02:28.8]} 13. Ng5 {[%clk 0:01:55.5]} 13... h6 {[%clk
0:02:20.7]} 14. Nh3 {[%clk 0:01:53.9]} 14... O-O {[%clk 0:02:20.9]} 15. Bf4
{[%clk 0:01:43.9]} 15... e5 {[%clk 0:02:21.3]} 16. Bg3 {[%clk 0:01:38.9]} 16...
Rae8 {[%clk 0:02:20.7]} 17. Bg4 {[%clk 0:01:36]} 17... Nf6 {[%clk 0:01:55.3]}
18. Bf3 {[%clk 0:01:27.6]} 18... Bb7 {[%clk 0:01:48.5]} 19. Qd2 {[%clk
0:01:14.5]} 19... Ne4 {[%clk 0:01:44.9]} 20. dxe5 {[%clk 0:01:01.3]} 20... Nxd2
{[%clk 0:01:26.1]} 21. exd6 {[%clk 0:01:01.2]} 21... Nxf3+ {[%clk 0:01:27]} 22.
gxf3 {[%clk 0:01:00.1]} 22... d4 {[%clk 0:01:27.9]} 23. Red1 {[%clk 0:00:48.5]}
23... d3 {[%clk 0:01:27.7]} 24. b3 {[%clk 0:00:48.2]} 24... b5 {[%clk
0:00:55.6]} 25. a4 {[%clk 0:00:43.8]} 25... a6 {[%clk 0:00:55.9]} 26. axb5
{[%clk 0:00:43.7]} 26... axb5 {[%clk 0:00:56.8]} 27. bxc4 {[%clk 0:00:44.1]}
27... bxc4 {[%clk 0:00:57.7]} 28. Ra4 {[%clk 0:00:42.9]} 28... Re2 {[%clk
0:00:50.7]} 29. Nf4 {[%clk 0:00:37.8]} 29... Rc2 {[%clk 0:00:48.8]} 30. Rxc4
{[%clk 0:00:32.2]} 30... Ne5 {[%clk 0:00:48.9]} 31. Rc7 {[%clk 0:00:22.3]} 31...
Bxf3 {[%clk 0:00:47.9]} 0-1

[Event "*** SCC Grand Prix: Titled Tuesday Blitz"]
[Site "Chess.com"]
[Date "2020.10.06"]
[Round "3"]
[White "mishanick"]
[Black "Yashasd1995"]
[Result "1-0"]
[WhiteElo "2999"]
[BlackElo "2623"]
[TimeControl "180+1"]
[EndTime "10:26:28 PDT"]
[Termination "mishanick won by resignation"]

1. d4 {[%clk 0:03:00.9]} 1... Nf6 {[%clk 0:02:59.5]} 2. c4 {[%clk 0:03:01.4]}
2... e6 {[%clk 0:02:59.8]} 3. Nc3 {[%clk 0:03:01.7]} 3... c5 {[%clk 0:02:58.7]}
4. d5 {[%clk 0:03:01.6]} 4... exd5 {[%clk 0:02:59.6]} 5. cxd5 {[%clk 0:03:02.5]}
5... d6 {[%clk 0:03:00.3]} 6. e4 {[%clk 0:03:02.8]} 6... g6 {[%clk 0:03:00.2]}
7. h3 {[%clk 0:03:02.4]} 7... Bg7 {[%clk 0:03:00.2]} 8. Nf3 {[%clk 0:03:01.7]}
8... O-O {[%clk 0:03:00.1]} 9. Bd3 {[%clk 0:03:02.3]} 9... a6 {[%clk 0:02:59.3]}
10. a4 {[%clk 0:03:01]} 10... Nbd7 {[%clk 0:02:54.8]} 11. Bf4 {[%clk 0:03:00]}
11... Qe7 {[%clk 0:02:51.2]} 12. O-O {[%clk 0:03:00.1]} 12... Ne8 {[%clk
0:02:51.5]} 13. Re1 {[%clk 0:02:57.4]} 13... Ne5 {[%clk 0:02:51.4]} 14. Be2
{[%clk 0:02:57.8]} 14... b6 {[%clk 0:02:45.9]} 15. Nd2 {[%clk 0:02:55.7]} 15...
g5 {[%clk 0:02:39.8]} 16. Bh2 {[%clk 0:02:54.9]} 16... f5 {[%clk 0:02:39.6]} 17.
exf5 {[%clk 0:02:54.6]} 17... Bxf5 {[%clk 0:02:39.4]} 18. Nde4 {[%clk
0:02:55.2]} 18... h6 {[%clk 0:02:28.5]} 19. Bf1 {[%clk 0:02:48.1]} 19... Qd7
{[%clk 0:01:59.9]} 20. Qb3 {[%clk 0:02:44.1]} 20... Rb8 {[%clk 0:01:52.8]} 21.
Bxa6 {[%clk 0:02:42.8]} 21... Nc7 {[%clk 0:01:50]} 22. Bf1 {[%clk 0:02:42.3]}
22... Bxh3 {[%clk 0:01:07.5]} 23. Bxe5 {[%clk 0:02:41.1]} 23... Bxe5 {[%clk
0:01:08.4]} 24. gxh3 {[%clk 0:02:41.6]} 24... g4 {[%clk 0:01:07.4]} 25. Nb5
{[%clk 0:02:36.3]} 25... Rf3 {[%clk 0:01:03.4]} 26. Re3 {[%clk 0:02:34.5]} 26...
Rbf8 {[%clk 0:01:01.1]} 27. Nxc7 {[%clk 0:02:32.7]} 27... Qxc7 {[%clk
0:00:57.3]} 28. hxg4 {[%clk 0:02:32.4]} 28... c4 {[%clk 0:00:46.6]} 29. Qxc4
{[%clk 0:02:27.1]} 29... Qg7 {[%clk 0:00:45.5]} 30. Rxf3 {[%clk 0:02:25.3]}
30... Rxf3 {[%clk 0:00:45]} 31. Bg2 {[%clk 0:02:25.3]} 31... Rf8 {[%clk
0:00:40.1]} 32. Rf1 {[%clk 0:02:23.1]} 32... Kh8 {[%clk 0:00:37.7]} 33. Qe2
{[%clk 0:02:22.3]} 33... Rf4 {[%clk 0:00:35.1]} 34. f3 {[%clk 0:02:20.5]} 34...
Bd4+ {[%clk 0:00:34.1]} 35. Kh2 {[%clk 0:02:19.5]} 35... Qe5 {[%clk 0:00:32.9]}
36. Ng3 {[%clk 0:02:17]} 36... Qg5 {[%clk 0:00:24.5]} 37. Qe8+ {[%clk
0:02:15.4]} 37... Kh7 {[%clk 0:00:24.8]} 38. Qh5 {[%clk 0:02:15]} 38... Qf6
{[%clk 0:00:20.4]} 39. Ne4 {[%clk 0:02:11.8]} 39... Qg7 {[%clk 0:00:19]} 40. Rc1
{[%clk 0:02:09.8]} 40... Be5 {[%clk 0:00:18.5]} 41. Kh1 {[%clk 0:02:10.2]} 41...
Rf8 {[%clk 0:00:16.3]} 42. b4 {[%clk 0:02:02.3]} 42... Bf4 {[%clk 0:00:16.3]}
43. Re1 {[%clk 0:01:57.3]} 43... Qb2 {[%clk 0:00:13.9]} 44. g5 {[%clk
0:01:57.1]} 44... Qg7 {[%clk 0:00:05.9]} 45. Bh3 {[%clk 0:01:35.1]} 45... Bxg5
{[%clk 0:00:04.3]} 46. Nxg5+ {[%clk 0:01:34.7]} 1-0

[Event "*** SCC Grand Prix: Titled Tuesday Blitz"]
[Site "Chess.com"]
[Date "2020.10.06"]
[Round "3"]
[White "ftorodent"]
[Black "Infernal_XaM"]
[Result "0-1"]
[WhiteElo "2671"]
[BlackElo "2878"]
[TimeControl "180+1"]
[EndTime "10:26:31 PDT"]
[Termination "Infernal_XaM won by resignation"]

1. d4 {[%clk 0:03:00.9]} 1... Nf6 {[%clk 0:02:59.8]} 2. Bg5 {[%clk 0:02:57.3]}
2... c5 {[%clk 0:02:59.1]} 3. Bxf6 {[%clk 0:02:56.9]} 3... gxf6 {[%clk 0:02:59]}
4. d5 {[%clk 0:02:57.2]} 4... Qb6 {[%clk 0:02:58.4]} 5. Qc1 {[%clk 0:02:57.1]}
5... Bh6 {[%clk 0:02:56.9]} 6. e3 {[%clk 0:02:56.6]} 6... f5 {[%clk 0:02:56.9]}
7. g3 {[%clk 0:02:50.6]} 7... d6 {[%clk 0:02:55.4]} 8. c3 {[%clk 0:02:49.9]}
8... Nd7 {[%clk 0:02:53.9]} 9. a4 {[%clk 0:02:39.3]} 9... Nf6 {[%clk 0:02:34.9]}
10. a5 {[%clk 0:02:16]} 10... Qb3 {[%clk 0:02:11.1]} 11. Bg2 {[%clk 0:01:47.5]}
11... Ne4 {[%clk 0:02:08.5]} 12. Nd2 {[%clk 0:01:08.2]} 12... Qxd5 {[%clk
0:02:03.6]} 13. a6 {[%clk 0:01:02.2]} 13... Rb8 {[%clk 0:01:58.6]} 14. Nxe4
{[%clk 0:00:51.9]} 14... fxe4 {[%clk 0:01:58.2]} 15. Qc2 {[%clk 0:00:52.1]}
15... f5 {[%clk 0:01:53.7]} 16. Ne2 {[%clk 0:00:42]} 16... bxa6 {[%clk
0:01:51.9]} 17. O-O {[%clk 0:00:38.7]} 17... Qb3 {[%clk 0:01:51.6]} 18. Qd2
{[%clk 0:00:27.2]} 18... Qxb2 {[%clk 0:01:50.5]} 19. Qd1 {[%clk 0:00:27.3]}
19... Qb3 {[%clk 0:01:49.9]} 20. Qd2 {[%clk 0:00:27.2]} 20... O-O {[%clk
0:01:45.7]} 21. Nf4 {[%clk 0:00:27.3]} 21... Bxf4 {[%clk 0:01:44.3]} 22. exf4
{[%clk 0:00:27.6]} 22... Qc4 {[%clk 0:01:36.6]} 23. f3 {[%clk 0:00:22.5]} 23...
d5 {[%clk 0:01:20.8]} 24. Rfd1 {[%clk 0:00:22.6]} 24... e6 {[%clk 0:01:20.7]}
25. fxe4 {[%clk 0:00:19.1]} 25... fxe4 {[%clk 0:01:16.9]} 26. Bf1 {[%clk
0:00:19.2]} 26... Qb3 {[%clk 0:01:17.3]} 27. Bxa6 {[%clk 0:00:15.6]} 27... Bd7
{[%clk 0:01:15.4]} 28. Qe2 {[%clk 0:00:13.8]} 28... Qxc3 {[%clk 0:01:14.2]} 29.
Rac1 {[%clk 0:00:12.7]} 29... Qa5 {[%clk 0:01:13.4]} 30. Qg4+ {[%clk 0:00:11.3]}
30... Kh8 {[%clk 0:01:12.4]} 31. Bf1 {[%clk 0:00:10.9]} 31... c4 {[%clk
0:01:10.7]} 32. Qg5 {[%clk 0:00:10.2]} 32... Qd8 {[%clk 0:01:06.6]} 33. Qh5
{[%clk 0:00:07.1]} 33... Qf6 {[%clk 0:01:06.3]} 34. Bxc4 {[%clk 0:00:07]} 34...
Be8 {[%clk 0:01:05.9]} 35. Qe2 {[%clk 0:00:03]} 35... dxc4 {[%clk 0:01:06]} 0-1

[Event "*** SCC Grand Prix: Titled Tuesday Blitz"]
[Site "Chess.com"]
[Date "2020.10.06"]
[Round "3"]
[White "maxsergej"]
[Black "anasta10"]
[Result "1/2-1/2"]
[WhiteElo "2123"]
[BlackElo "2476"]
[TimeControl "180+1"]
[EndTime "10:26:31 PDT"]
[Termination "Game drawn by repetition"]

1. e4 {[%clk 0:02:57.1]} 1... e6 {[%clk 0:01:28.7]} 2. d4 {[%clk 0:02:55.6]}
2... d5 {[%clk 0:01:29.6]} 3. Nd2 {[%clk 0:02:54.9]} 3... c5 {[%clk 0:01:29.2]}
4. exd5 {[%clk 0:02:54.6]} 4... exd5 {[%clk 0:01:30.1]} 5. Ngf3 {[%clk
0:02:53.3]} 5... Nf6 {[%clk 0:01:30.3]} 6. Bb5+ {[%clk 0:02:52.6]} 6... Nc6
{[%clk 0:01:30]} 7. O-O {[%clk 0:02:52.2]} 7... Be7 {[%clk 0:01:30.6]} 8. dxc5
{[%clk 0:02:52]} 8... O-O {[%clk 0:01:30.8]} 9. Nb3 {[%clk 0:02:48.9]} 9... Bg4
{[%clk 0:01:30.7]} 10. Be2 {[%clk 0:02:48.1]} 10... Re8 {[%clk 0:01:30]} 11. c3
{[%clk 0:02:48]} 11... Ne4 {[%clk 0:01:29.6]} 12. Be3 {[%clk 0:02:42.1]} 12...
Rc8 {[%clk 0:01:27.1]} 13. h3 {[%clk 0:02:30.7]} 13... Be6 {[%clk 0:01:25.4]}
14. Nbd4 {[%clk 0:02:25.9]} 14... Nxc5 {[%clk 0:01:23.4]} 15. Nxe6 {[%clk
0:02:23]} 15... Nxe6 {[%clk 0:01:23.4]} 16. Nd4 {[%clk 0:02:23]} 16... Nexd4
{[%clk 0:01:21.6]} 17. cxd4 {[%clk 0:02:16.8]} 17... Bf6 {[%clk 0:01:17.2]} 18.
Bf3 {[%clk 0:02:13.3]} 18... Qa5 {[%clk 0:01:16.6]} 19. a3 {[%clk 0:02:02.9]}
19... h6 {[%clk 0:01:15.7]} 20. b4 {[%clk 0:02:02.3]} 20... Qb5 {[%clk
0:01:14.2]} 21. Rc1 {[%clk 0:01:45.6]} 21... Ne7 {[%clk 0:01:09.5]} 22. Qb3
{[%clk 0:01:36.9]} 22... Red8 {[%clk 0:01:04.6]} 23. Rc5 {[%clk 0:01:30.1]}
23... Qd7 {[%clk 0:00:36.3]} 24. Rfc1 {[%clk 0:01:27.2]} 24... b6 {[%clk
0:00:36.7]} 25. Rxc8 {[%clk 0:01:25.8]} 25... Rxc8 {[%clk 0:00:33.7]} 26. Rxc8+
{[%clk 0:01:25.3]} 26... Qxc8 {[%clk 0:00:34.3]} 27. Bxd5 {[%clk 0:01:22.6]}
27... Nxd5 {[%clk 0:00:35.2]} 28. Qxd5 {[%clk 0:01:21.6]} 28... Qc3 {[%clk
0:00:35.8]} 29. Qa8+ {[%clk 0:01:11.3]} 29... Kh7 {[%clk 0:00:35.9]} 30. Qxa7
{[%clk 0:01:11]} 30... Bxd4 {[%clk 0:00:36.3]} 31. Bxd4 {[%clk 0:01:10.2]} 31...
Qxd4 {[%clk 0:00:37.2]} 32. Qxf7 {[%clk 0:00:57.4]} 32... Qa1+ {[%clk
0:00:36.9]} 33. Kh2 {[%clk 0:00:55.9]} 33... Qxa3 {[%clk 0:00:37.8]} 34. Qf5+
{[%clk 0:00:46.9]} 34... Kh8 {[%clk 0:00:37.6]} 35. Qf8+ {[%clk 0:00:40]} 35...
Kh7 {[%clk 0:00:37.3]} 36. Qf5+ {[%clk 0:00:39.8]} 36... Kh8 {[%clk 0:00:37]}
37. Qf8+ {[%clk 0:00:39.3]} 37... Kh7 {[%clk 0:00:37]} 38. Qf5+ {[%clk
0:00:39.5]} 1/2-1/2

[Event "*** SCC Grand Prix: Titled Tuesday Blitz"]
[Site "Chess.com"]
[Date "2020.10.06"]
[Round "3"]
[White "FairChess_on_YouTube"]
[Black "Jumbo"]
[Result "1-0"]
[WhiteElo "2979"]
[BlackElo "2716"]
[TimeControl "180+1"]
[EndTime "10:26:34 PDT"]
[Termination "FairChess_on_YouTube won on time"]

1. d4 {[%clk 0:03:00.9]} 1... d5 {[%clk 0:02:58.5]} 2. c4 {[%clk 0:03:00.7]}
2... e6 {[%clk 0:02:58.9]} 3. Nc3 {[%clk 0:03:00.3]} 3... Nf6 {[%clk 0:02:58.3]}
4. cxd5 {[%clk 0:02:59.7]} 4... exd5 {[%clk 0:02:59.2]} 5. Bg5 {[%clk
0:02:58.9]} 5... c6 {[%clk 0:02:58.2]} 6. e3 {[%clk 0:02:58.6]} 6... Be7 {[%clk
0:02:56.1]} 7. Bd3 {[%clk 0:02:58]} 7... Nbd7 {[%clk 0:02:54.9]} 8. Nf3 {[%clk
0:02:56.5]} 8... Ne4 {[%clk 0:02:14.8]} 9. Bxe7 {[%clk 0:02:40.5]} 9... Qxe7
{[%clk 0:02:11.2]} 10. Qc2 {[%clk 0:02:41]} 10... Ndf6 {[%clk 0:02:08.3]} 11.
Ne5 {[%clk 0:02:37.3]} 11... Nd6 {[%clk 0:01:52.2]} 12. O-O-O {[%clk 0:02:26.8]}
12... g6 {[%clk 0:01:48.6]} 13. f3 {[%clk 0:02:23.2]} 13... Be6 {[%clk
0:01:24.4]} 14. Kb1 {[%clk 0:02:11.6]} 14... O-O-O {[%clk 0:01:22]} 15. Rc1
{[%clk 0:01:42.2]} 15... Kb8 {[%clk 0:01:20]} 16. Na4 {[%clk 0:01:32]} 16... Bf5
{[%clk 0:00:56]} 17. Rhd1 {[%clk 0:01:22.2]} 17... Ka8 {[%clk 0:00:54.2]} 18.
Nc5 {[%clk 0:01:14.9]} 18... Rc8 {[%clk 0:00:36.5]} 19. g4 {[%clk 0:00:57.9]}
19... Bxd3 {[%clk 0:00:34.7]} 20. Rxd3 {[%clk 0:00:58.8]} 20... b6 {[%clk
0:00:19.5]} 21. g5 {[%clk 0:00:58.7]} 21... Nfe8 {[%clk 0:00:09.7]} 22. Ncd7
{[%clk 0:00:58.4]} 22... Kb7 {[%clk 0:00:04.4]} 23. Qa4 {[%clk 0:00:44]} 23...
Nc4 {[%clk 0:00:03.3]} 24. Rxc4 {[%clk 0:00:43.9]} 24... dxc4 {[%clk 0:00:02.7]}
25. Ra3 {[%clk 0:00:44.5]} 25... a5 {[%clk 0:00:01.9]} 26. Nxb6 {[%clk
0:00:44.5]} 1-0

[Event "*** SCC Grand Prix: Titled Tuesday Blitz"]
[Site "Chess.com"]
[Date "2020.10.06"]
[Round "3"]
[White "GianmarcoVaR"]
[Black "TimofeevAr"]
[Result "0-1"]
[WhiteElo "2471"]
[BlackElo "2837"]
[TimeControl "180+1"]
[EndTime "10:26:35 PDT"]
[Termination "TimofeevAr won on time"]

1. d4 {[%clk 0:03:00.2]} 1... d5 {[%clk 0:02:58.6]} 2. c4 {[%clk 0:02:59.2]}
2... e6 {[%clk 0:02:58.9]} 3. g3 {[%clk 0:02:58.5]} 3... dxc4 {[%clk 0:02:58.1]}
4. Nf3 {[%clk 0:02:58.4]} 4... c6 {[%clk 0:02:58.3]} 5. Bg2 {[%clk 0:02:39.5]}
5... b5 {[%clk 0:02:57.9]} 6. O-O {[%clk 0:02:38.5]} 6... Bb7 {[%clk 0:02:57.5]}
7. a4 {[%clk 0:02:35.7]} 7... Qc8 {[%clk 0:02:57.1]} 8. b3 {[%clk 0:02:34]} 8...
cxb3 {[%clk 0:02:51.3]} 9. Qxb3 {[%clk 0:02:34.5]} 9... a6 {[%clk 0:02:51.7]}
10. Nc3 {[%clk 0:02:16.6]} 10... Nf6 {[%clk 0:02:50.7]} 11. Bg5 {[%clk
0:02:16.3]} 11... Be7 {[%clk 0:02:49.6]} 12. Rac1 {[%clk 0:02:16.7]} 12... b4
{[%clk 0:02:39.7]} 13. Bxf6 {[%clk 0:02:13.6]} 13... gxf6 {[%clk 0:02:39.6]} 14.
Ne4 {[%clk 0:02:13.3]} 14... a5 {[%clk 0:02:40]} 15. Nc5 {[%clk 0:02:09.3]}
15... O-O {[%clk 0:02:28.6]} 16. Nxb7 {[%clk 0:02:06.5]} 16... Qxb7 {[%clk
0:02:28.2]} 17. Rc2 {[%clk 0:02:01.8]} 17... Nd7 {[%clk 0:02:24.9]} 18. Rfc1
{[%clk 0:01:54.5]} 18... Rac8 {[%clk 0:02:21.7]} 19. Nd2 {[%clk 0:01:23.2]}
19... Qa7 {[%clk 0:02:15.5]} 20. Nc4 {[%clk 0:00:32.2]} 20... Nb6 {[%clk
0:01:52.9]} 21. Nxb6 {[%clk 0:00:25.3]} 21... Qxb6 {[%clk 0:01:52.8]} 22. e3
{[%clk 0:00:25.6]} 22... c5 {[%clk 0:01:52.1]} 23. d5 {[%clk 0:00:24.9]} 23...
Rfd8 {[%clk 0:01:32.6]} 24. Qc4 {[%clk 0:00:25.2]} 24... f5 {[%clk 0:01:28.9]}
25. e4 {[%clk 0:00:13]} 25... exd5 {[%clk 0:01:24.8]} 26. exd5 {[%clk
0:00:13.3]} 26... Qf6 {[%clk 0:01:22.6]} 27. Qd3 {[%clk 0:00:10.4]} 27... Rb8
{[%clk 0:01:19.2]} 28. Rb1 {[%clk 0:00:10.6]} 28... Bf8 {[%clk 0:01:15.6]} 29.
Bh3 {[%clk 0:00:09.4]} 29... f4 {[%clk 0:01:15.6]} 30. Rc4 {[%clk 0:00:09.4]}
30... Bd6 {[%clk 0:01:11.4]} 31. Qf3 {[%clk 0:00:06.6]} 31... Kh8 {[%clk
0:01:07]} 32. Re4 {[%clk 0:00:04.9]} 32... Re8 {[%clk 0:01:06.5]} 33. Rc4 {[%clk
0:00:01]} 33... Qg6 {[%clk 0:01:03.4]} 0-1

[Event "*** SCC Grand Prix: Titled Tuesday Blitz"]
[Site "Chess.com"]
[Date "2020.10.06"]
[Round "3"]
[White "VladaSviridova"]
[Black "LogoCzar"]
[Result "0-1"]
[WhiteElo "2245"]
[BlackElo "2428"]
[TimeControl "180+1"]
[EndTime "10:26:35 PDT"]
[Termination "LogoCzar won by resignation"]

1. d4 {[%clk 0:03:00.9]} 1... d5 {[%clk 0:02:59.8]} 2. c4 {[%clk 0:03:00.1]}
2... c6 {[%clk 0:03:00]} 3. Nf3 {[%clk 0:03:00.3]} 3... Nf6 {[%clk 0:02:58.8]}
4. Nc3 {[%clk 0:03:00.8]} 4... e6 {[%clk 0:02:58.9]} 5. e3 {[%clk 0:03:00.7]}
5... Nbd7 {[%clk 0:02:58.6]} 6. Qc2 {[%clk 0:03:01]} 6... Bd6 {[%clk 0:02:58.5]}
7. Bd3 {[%clk 0:03:01.5]} 7... O-O {[%clk 0:02:58]} 8. O-O {[%clk 0:03:00.9]}
8... dxc4 {[%clk 0:02:58.3]} 9. Bxc4 {[%clk 0:03:00.7]} 9... b5 {[%clk
0:02:58.4]} 10. Be2 {[%clk 0:03:00.8]} 10... Bb7 {[%clk 0:02:58.6]} 11. e4
{[%clk 0:02:47.3]} 11... e5 {[%clk 0:02:58.3]} 12. dxe5 {[%clk 0:02:47.6]} 12...
Nxe5 {[%clk 0:02:58.3]} 13. Nh4 {[%clk 0:02:47.4]} 13... Nfg4 {[%clk 0:02:54.9]}
14. g3 {[%clk 0:01:40.5]} 14... Bc5 {[%clk 0:02:50.8]} 15. h3 {[%clk 0:00:59.7]}
15... Nxf2 {[%clk 0:02:44.6]} 16. Rxf2 {[%clk 0:00:59.6]} 16... Bxf2+ {[%clk
0:02:26.2]} 17. Kxf2 {[%clk 0:00:58.4]} 17... f5 {[%clk 0:02:24.2]} 18. exf5
{[%clk 0:00:46.8]} 18... b4 {[%clk 0:02:22.9]} 19. Ne4 {[%clk 0:00:42.9]} 19...
c5 {[%clk 0:02:16.1]} 20. Bf4 {[%clk 0:00:40.6]} 20... Qd4+ {[%clk 0:02:11.6]}
21. Be3 {[%clk 0:00:34.4]} 21... Qxe4 {[%clk 0:02:10.1]} 22. Qxe4 {[%clk
0:00:22.8]} 22... Bxe4 {[%clk 0:02:10.4]} 23. Bxc5 {[%clk 0:00:22.4]} 23... Rfe8
{[%clk 0:02:06.6]} 24. g4 {[%clk 0:00:20.6]} 24... a5 {[%clk 0:02:00.4]} 25. Nf3
{[%clk 0:00:19]} 25... Bxf3 {[%clk 0:01:57]} 26. Bxf3 {[%clk 0:00:19.2]} 26...
Nd3+ {[%clk 0:01:57.3]} 27. Kg3 {[%clk 0:00:18.3]} 27... Nxc5 {[%clk 0:01:57.4]}
28. Bxa8 {[%clk 0:00:16.1]} 28... Rxa8 {[%clk 0:01:57.5]} 29. Rc1 {[%clk
0:00:16.4]} 29... Nd3 {[%clk 0:01:56.9]} 30. Rc2 {[%clk 0:00:15.7]} 30... a4
{[%clk 0:01:56.3]} 31. Rd2 {[%clk 0:00:15.9]} 31... Nc5 {[%clk 0:01:54.1]} 32.
Rd4 {[%clk 0:00:14.6]} 32... b3 {[%clk 0:01:48.5]} 33. a3 {[%clk 0:00:12.4]}
33... Kf7 {[%clk 0:01:47.9]} 34. Rc4 {[%clk 0:00:11.9]} 34... Nd7 {[%clk
0:01:45]} 35. Rc7 {[%clk 0:00:10.7]} 35... Ke8 {[%clk 0:01:42.5]} 36. Kf4 {[%clk
0:00:10.7]} 36... Kd8 {[%clk 0:01:39]} 37. Rc4 {[%clk 0:00:10.3]} 37... Ke7
{[%clk 0:01:37.6]} 38. g5 {[%clk 0:00:10]} 38... Kd6 {[%clk 0:01:36.7]} 39. h4
{[%clk 0:00:09.8]} 39... Kd5 {[%clk 0:01:36.9]} 40. Rb4 {[%clk 0:00:09.6]} 40...
Nc5 {[%clk 0:01:36.2]} 41. Rb5 {[%clk 0:00:08.1]} 41... Kc4 {[%clk 0:01:35.5]}
42. Rb6 {[%clk 0:00:07.5]} 42... Nd3+ {[%clk 0:01:35.4]} 43. Ke3 {[%clk
0:00:06.3]} 43... Nxb2 {[%clk 0:01:35.7]} 44. Rb4+ {[%clk 0:00:05.3]} 44... Kc3
{[%clk 0:01:35.3]} 45. Rb7 {[%clk 0:00:04.1]} 45... Nc4+ {[%clk 0:01:35.5]} 46.
Ke2 {[%clk 0:00:03.7]} 46... Nxa3 {[%clk 0:01:34.8]} 47. f6 {[%clk 0:00:02.6]}
47... gxf6 {[%clk 0:01:34.7]} 48. gxf6 {[%clk 0:00:02.8]} 48... b2 {[%clk
0:01:34.8]} 49. f7 {[%clk 0:00:02.7]} 49... Rf8 {[%clk 0:01:33.3]} 0-1

[Event "*** SCC Grand Prix: Titled Tuesday Blitz"]
[Site "Chess.com"]
[Date "2020.10.06"]
[Round "3"]
[White "natelleka"]
[Black "PowerThinking2650"]
[Result "0-1"]
[WhiteElo "2215"]
[BlackElo "2373"]
[TimeControl "180+1"]
[EndTime "10:26:35 PDT"]
[Termination "PowerThinking2650 won by checkmate"]

1. e4 {[%clk 0:02:58]} 1... e5 {[%clk 0:02:58.5]} 2. Nf3 {[%clk 0:02:57.4]} 2...
Nc6 {[%clk 0:02:58.7]} 3. Bb5 {[%clk 0:02:57.8]} 3... a6 {[%clk 0:02:58.2]} 4.
Ba4 {[%clk 0:02:58.3]} 4... Nf6 {[%clk 0:02:57.7]} 5. O-O {[%clk 0:02:58.7]}
5... Be7 {[%clk 0:02:56.9]} 6. Re1 {[%clk 0:02:58.9]} 6... b5 {[%clk 0:02:56.3]}
7. Bb3 {[%clk 0:02:59.4]} 7... d6 {[%clk 0:02:57]} 8. c3 {[%clk 0:02:57.9]} 8...
O-O {[%clk 0:02:56.6]} 9. h3 {[%clk 0:02:58.5]} 9... Bb7 {[%clk 0:02:55.5]} 10.
d4 {[%clk 0:02:57.8]} 10... Re8 {[%clk 0:02:54]} 11. Ng5 {[%clk 0:02:55.8]}
11... Rf8 {[%clk 0:02:53.6]} 12. d5 {[%clk 0:02:50.4]} 12... Na5 {[%clk
0:02:48.7]} 13. Bc2 {[%clk 0:02:50.8]} 13... h6 {[%clk 0:02:47.7]} 14. Nf3
{[%clk 0:02:50.9]} 14... c6 {[%clk 0:02:48.2]} 15. dxc6 {[%clk 0:02:49.6]} 15...
Bxc6 {[%clk 0:02:49.1]} 16. Nbd2 {[%clk 0:02:49.6]} 16... Nb7 {[%clk 0:02:47.7]}
17. Nf1 {[%clk 0:02:48.9]} 17... Nc5 {[%clk 0:02:39.4]} 18. Ng3 {[%clk
0:02:47.1]} 18... Qc7 {[%clk 0:02:38.5]} 19. Nh4 {[%clk 0:01:59.7]} 19... Rfe8
{[%clk 0:02:20.3]} 20. Nhf5 {[%clk 0:01:56.7]} 20... Bf8 {[%clk 0:02:02.7]} 21.
Qf3 {[%clk 0:01:46.1]} 21... Nh7 {[%clk 0:01:41.3]} 22. Qg4 {[%clk 0:01:04.7]}
22... Kh8 {[%clk 0:01:40.6]} 23. Qh4 {[%clk 0:00:53.2]} 23... d5 {[%clk
0:01:30.4]} 24. exd5 {[%clk 0:00:50.3]} 24... Bxd5 {[%clk 0:01:29]} 25. Nh5
{[%clk 0:00:13]} 25... f6 {[%clk 0:01:21.6]} 26. Nxf6 {[%clk 0:00:11.4]} 26...
gxf6 {[%clk 0:01:17.5]} 27. Nxh6 {[%clk 0:00:11.5]} 27... Bxh6 {[%clk
0:01:15.3]} 28. Qxh6 {[%clk 0:00:10.5]} 28... Rg8 {[%clk 0:01:10.4]} 29. Be3
{[%clk 0:00:06.9]} 29... Rxg2+ {[%clk 0:01:08.5]} 30. Kf1 {[%clk 0:00:07.6]}
30... Rag8 {[%clk 0:00:53.5]} 31. Rad1 {[%clk 0:00:06.7]} 31... Bc4+ {[%clk
0:00:52.1]} 32. Re2 {[%clk 0:00:04.2]} 32... Rg1# {[%clk 0:00:51.1]} 0-1